bitfinex/quotes_SOLUSD_20251201
["timestamp","ask_amount","ask_price","bid_price","bid_amount"]
[1764547849048,8.80994492,131.24,131.15,0.67]
[1764547849253,8.15081534,131.18,131.15,0.67]
[1764547849463,16.308864,131.25,131.11,0.67]
[1764547849464,8.15081534,131.16,131.11,0.67]
[1764547849770,7.62137032,131.21,131.12,0.67]
[1764547850066,8.15081534,131.17,131.11,8.15081534]
[1764547850238,8.15081534,131.17,131.1,16.308864]
[1764547850443,8.15081534,131.14,131.07,8.15081534]
[1764547850764,8.15081534,131.18,131.09,8.80994492]
[1764547850966,8.80994492,131.25,131.14,8.15081534]
[1764547851264,8.15081534,131.16,131.09,3.98]
[1764547851470,8.15081534,131.16,130.95,38.9397862]
[1764547851471,16.308864,131.17,131.05,8.15081534]
[1764547851771,8.15081534,131.19,131.12,24.45967934]
[1764547851952,8.15081534,131.17,131.1,8.15081534]
[1764547852152,8.15081534,131.17,131.08,0.67]
[1764547852341,16.308864,131.24,131.08,0.67]
[1764547852342,8.15081534,131.19,131.09,75.0]
[1764547852550,8.15081534,131.18,131.08,0.67]
[1764547852753,8.15081534,131.16,131.08,0.67]
[1764547853045,8.15081534,131.15,131.1,16.308864]
[1764547853249,16.308864,131.22,131.1,16.308864]
[1764547853440,8.15081534,131.15,131.11,0.67]
[1764547853642,46.89705306,131.32,131.14,24.45967934]
[1764547853850,46.89705306,131.32,131.18,8.15081534]
[1764547853851,8.82081534,131.32,131.18,8.15081534]
[1764547854044,8.15081534,131.22,131.16,8.15081534]
[1764547854242,7.61556621,131.31,131.16,8.82081534]
[1764547854459,8.15081534,131.21,131.17,0.67]
[1764547854641,25.11880892,131.22,131.07,8.15081534]
[1764547854851,8.15081534,131.14,131.08,8.15081534]
[1764547855051,25.11880892,131.22,131.06,8.30009308]
[1764547855052,16.308864,131.22,131.09,0.67]
[1764547855355,8.15081534,131.32,131.15,16.308864]
[1764547855558,8.28442,131.33,131.18,8.15081534]
[1764547855883,0.67,131.33,131.18,8.80994492]
[1764547856172,1.99999999,131.39,131.23,8.15081534]
[1764547856173,11.58949324,131.39,131.23,8.15081534]
[1764547856384,2.69999999,131.38,131.19,8.80994492]
[1764547856664,0.7,131.38,131.22,83.80994492]
[1764547856839,8.15081534,131.31,131.22,3.98]
[1764547857043,8.15081534,131.34,131.28,8.15081534]
[1764547857243,8.15081534,131.31,131.22,3.98]
[1764547857438,0.7,131.4,131.23,75.0]
[1764547857642,8.15081534,131.34,131.29,7.61672633]
[1764547857842,8.31041019,131.4,131.27,16.308864]
[1764547858078,0.7,131.44,131.3,16.308864]
[1764547858376,8.15081534,131.46,131.33,8.15081534]
[1764547858584,8.15081534,131.39,131.34,0.68]
[1764547858743,8.15081534,131.4,131.34,8.83081534]
[1764547858951,8.15081534,131.41,131.35,8.15081534]
[1764547859150,0.2,131.45,131.36,8.15081534]
[1764547859351,8.50749694,131.45,131.32,16.308864]
[1764547859663,8.80994492,131.44,131.32,24.45967934]
[1764547859866,8.15081534,131.37,131.3,3.98]
[1764547860071,8.15081534,131.31,131.23,75.0]
[1764547860252,0.7,131.4,131.27,75.0]
[1764547860454,8.15081534,131.33,131.25,75.0]
[1764547860656,8.15081534,131.37,131.31,8.15081534]
[1764547860848,8.15081534,131.32,131.23,75.0]
[1764547861055,8.15081534,131.24,131.19,26.67886271]
[1764547861257,8.15081534,131.2,131.12,26.69310554]
[1764547861471,8.80994492,131.26,131.12,26.69310554]
[1764547861765,8.80994492,131.26,131.09,38.14006619]
[1764547861766,8.80994492,131.23,131.13,0.68]
[1764547861942,26.66869856,131.24,131.1,7.62776506]
[1764547862143,7.61962816,131.24,131.13,16.308864]
[1764547862375,0.7,131.24,131.13,75.0]
[1764547862573,17.008864,131.23,131.12,9.63300664]
[1764547862782,26.66489783,131.26,131.12,75.0]
[1764547863088,0.7,131.34,131.21,9.63300664]
[1764547863380,9.63300664,131.29,131.21,75.0]
[1764547863549,8.80994492,131.38,131.21,16.308864]
[1764547863750,8.80994492,131.35,131.22,7.62078951]
[1764547863949,8.80994492,131.35,131.23,9.63300664]
[1764547864151,9.63300664,131.32,131.26,16.308864]
[1764547864450,9.63300664,131.35,131.29,9.63300664]
[1764547864665,9.63300664,131.35,131.3,0.19]
[1764547864867,0.2,131.45,131.34,9.63300664]
[1764547865068,9.63300664,131.39,131.34,3.96]
[1764547865269,9.63300664,131.35,131.3,0.19]
[1764547865499,9.63300664,131.32,131.28,3.96]
[1764547865658,9.63300664,131.41,131.28,3.96]
[1764547865861,8.80994492,131.35,131.19,150.19]
[1764547866075,9.63300664,131.25,131.17,3.96]
[1764547866270,9.63300664,131.23,131.18,9.63300664]
[1764547866478,9.63300664,131.2,131.12,75.0]
[1764547866661,8.80994492,131.29,131.13,3.96]
[1764547866980,8.80994492,131.32,131.2,9.63300664]
[1764547867193,9.63300664,131.24,131.19,25.94187064]
[1764547867411,9.63300664,131.2,131.09,0.19]
[1764547867555,9.63300664,131.12,131.1,26.69644991]
[1764547867760,9.50994492,131.22,131.1,17.2607717]
[1764547867957,0.7,131.27,131.16,9.63300664]
[1764547868193,9.63300664,131.25,131.19,9.63300664]
[1764547868408,0.7,131.28,131.13,153.96]
[1764547868681,8.80994492,131.26,131.13,9.63300664]
[1764547868864,26.6565118,131.3,131.1,139.83600304]
[1764547868865,26.6565118,131.3,131.14,0.19]
[1764547869071,9.63300664,131.27,131.21,25.94187064]
[1764547869273,8.80994492,131.31,131.2,9.63300664]
[1764547869580,7.61388864,131.34,131.24,9.63300664]
[1764547869780,9.63300664,131.41,131.22,26.67276329]
[1764547869971,9.63300664,131.28,131.22,26.86276329]
[1764547870172,0.7,131.4,131.23,75.19]
[1764547870382,9.63300664,131.25,131.18,75.0]
[1764547870608,8.80994492,131.3,131.15,9.63300664]
[1764547870885,0.7,131.38,131.24,9.63300664]
[1764547871085,9.63300664,131.27,131.22,3.98]
[1764547871396,9.63300664,131.27,131.14,9.62543845]
[1764547871397,9.63300664,131.23,131.15,88.61300664]
[1764547871694,9.63300664,131.24,131.19,16.308864]
[1764547871881,0.7,131.35,131.23,9.63300664]
[1764547872081,9.63300664,131.25,131.2,36.49983589]
[1764547872387,9.63300664,131.31,131.27,16.308864]
[1764547872584,0.7,131.37,131.27,16.308864]
[1764547872805,0.7,131.42,131.3,9.63300664]
[1764547873010,9.63300664,131.33,131.28,75.0]
[1764547873189,0.7,131.42,131.32,9.63300664]
[1764547873500,0.2,131.45,131.3,75.0]
[1764547873501,0.2,131.45,131.33,9.63300664]
[1764547873683,0.2,131.45,131.35,9.63300664]
[1764547873876,0.2,131.45,131.38,9.63300664]
[1764547874073,9.63300664,131.44,131.39,9.63300664]
[1764547874300,0.2,131.45,131.36,18.44295156]
[1764547874301,9.63300664,131.41,131.36,18.44295156]
[1764547874599,0.2,131.45,131.37,75.0]
[1764547874799,0.2,131.45,131.43,16.308864]
[1764547874998,0.2,131.45,131.44,16.308864]
[1764547875200,1e-08,131.45,131.44,34.75181556]
[1764547875404,1e-08,131.45,131.44,16.308864]
[1764547875782,1e-08,131.45,131.44,117.35984964]
[1764547876078,1e-08,131.45,131.44,192.35984964]
[1764547876283,1e-08,131.45,131.44,194.35984963]
[1764547876486,1e-08,131.45,131.44,192.35984964]
[1764547876691,0.7,131.62,131.52,16.308864]
[1764547876887,9.63300664,131.55,131.52,16.308864]
[1764547877107,0.7,131.62,131.45,18.44295156]
[1764547877108,9.63300664,131.53,131.45,18.44295156]
[1764547877281,25.94187064,131.58,131.43,8.80994492]
[1764547877481,9.63300664,131.5,131.45,9.63300664]
[1764547877682,0.7,131.57,131.44,84.63300664]
[1764547878005,0.7,131.57,131.42,92.24219854]
[1764547878006,8.30053548,131.57,131.42,92.24219854]
[1764547878179,0.7,131.57,131.45,9.63300664]
[1764547878379,9.63300664,131.46,131.42,101.63217165]
[1764547878577,9.63300664,131.46,131.41,3.96]
[1764547878578,9.63300664,131.43,131.41,3.96]
[1764547878802,9.63300664,131.42,131.37,3.96]
[1764547879014,0.7,131.54,131.29,75.0]
[1764547879015,9.63300664,131.38,131.29,75.0]
[1764547879193,0.7,131.41,131.29,9.63300664]
[1764547879390,0.7,131.41,131.31,9.63300664]
[1764547879588,0.7,131.41,131.3,75.0]
[1764547879909,9.63300664,131.35,131.3,84.63300664]
[1764547880206,0.7,131.45,131.34,84.63300664]
[1764547880408,0.7,131.54,131.4,75.0]
[1764547880622,0.7,131.54,131.45,9.63300664]
[1764547880623,9.63300664,131.51,131.45,9.63300664]
[1764547880906,9.63300664,131.54,131.48,9.63300664]
[1764547881079,0.2,131.59,131.47,3.96]
[1764547881279,9.63300664,131.54,131.49,25.94187064]
[1764547881482,0.2,131.59,131.51,25.94187064]
[1764547881680,9.83300664,131.59,131.53,25.94187064]
[1764547881916,0.2,131.59,131.54,7.60225026]
[1764547882481,0.2,131.59,131.54,26.60787592]
[1764547883115,9.83300664,131.59,131.54,26.60787592]
[1764547883628,0.2,131.59,131.55,8.80994492]
[1764547883829,0.2,131.59,131.57,7.60051683]
[1764547884323,9.63300664,131.58,131.53,39.27514005]
[1764547884617,7.79982146,131.59,131.47,9.63300664]
[1764547884819,9.83300664,131.59,131.51,7.624]
[1764547885021,0.2,131.59,131.51,7.624]
[1764547885230,0.2,131.59,131.53,17.25700664]
[1764547885551,9.63300664,131.58,131.54,16.308864]
[1764547885684,0.2,131.59,131.54,16.308864]
[1764547885888,0.2,131.59,131.53,7.624]
[1764547885889,9.63300664,131.56,131.55,7.60167236]
[1764547886088,9.63300664,131.56,131.54,7.60220283]
[1764547886326,9.63300664,131.55,131.5,7.624]
[1764547886526,15.01067225,131.65,131.52,7.624]
[1764547886527,11.79714059,131.65,131.52,7.624]
[1764547886691,9.63300664,131.55,131.51,4.6]
[1764547886988,30.78653665,131.65,131.52,7.624]
[1764547887189,9.63300664,131.55,131.52,7.624]
[1764547887390,4.20072734,131.65,131.55,16.43394492]
[1764547887621,4.20072734,131.65,131.59,16.43394492]
[1764547887808,3.54072734,131.65,131.64,7.59647523]
[1764547887997,3.54072734,131.65,131.64,23.90533923]
[1764547888503,1e-08,131.65,131.64,24.03042015]
[1764547888804,1e-08,131.65,131.64,17.25700664]
[1764547889397,1e-08,131.69,131.66,98.932864]
[1764547889591,1e-08,131.69,131.68,150.0]
[1764547889795,1e-08,131.69,131.68,159.63300664]
[1764547890119,9.63300664,131.79,131.71,91.308864]
[1764547890290,9.63300664,131.74,131.71,16.308864]
[1764547890492,9.63300664,131.74,131.68,7.59416767]
[1764547890493,0.66,131.74,131.68,7.59416767]
[1764547890720,0.66,131.77,131.67,7.59473184]
[1764547890925,0.66,131.77,131.66,18.98823039]
[1764547890926,0.66,131.77,131.68,9.63300664]
[1764547891102,9.63300664,131.72,131.67,8.80994492]
[1764547891462,9.63300664,131.7,131.65,11.53589809]
[1764547891593,9.63300664,131.68,131.65,11.535509]
[1764547891793,9.63300664,131.73,131.67,17.22775107]
[1764547891989,9.63300664,131.74,131.67,7.59474443]
[1764547892223,0.66,131.79,131.69,9.63300664]
[1764547892429,0.66,131.85,131.72,9.63300664]
[1764547892721,7.58341235,131.87,131.72,13.55300664]
[1764547892896,7.58341235,131.87,131.75,16.308864]
[1764547892897,0.66,131.86,131.75,16.308864]
[1764547893293,0.66,131.86,131.8,16.308864]
[1764547893499,9.63300664,131.86,131.81,16.308864]
[1764547893712,0.66,131.9,131.81,25.94187064]
[1764547893890,18.94079835,132.0,131.88,16.308864]
[1764547894091,9.63300664,131.89,131.88,16.308864]
[1764547894301,10.29300664,131.89,131.81,7.58660324]
[1764547894502,9.63300664,131.82,131.69,75.0]
[1764547894710,0.66,131.88,131.74,9.63300664]
[1764547894895,0.66,131.88,131.78,16.308864]
[1764547895096,9.63300664,131.81,131.79,16.308864]
[1764547895520,0.66,131.88,131.79,16.308864]
[1764547895714,187.51839957,132.07,131.8,3.92]
[1764547895715,9.63300664,131.84,131.8,3.92]
[1764547895917,9.63300664,131.83,131.8,16.308864]
[1764547896105,9.63300664,131.81,131.7,3.92]
[1764547896302,9.63300664,131.75,131.69,8.80994492]
[1764547896521,8.80994492,131.85,131.69,150.0]
[1764547896818,0.66,131.84,131.69,75.0]
[1764547897019,0.66,131.84,131.69,9.63300664]
[1764547897325,9.63300664,131.75,131.74,16.308864]
[1764547897498,0.66,131.84,131.74,16.308864]
[1764547897820,16.39604718,131.82,131.66,26.58362448]
[1764547898000,9.63300664,131.7,131.66,26.58362448]
[1764547898196,9.63300664,131.67,131.66,7.59532128]
[1764547898428,9.63300664,131.67,131.61,18.99539193]
[1764547898629,0.66,131.7,131.6,7.5986825]
[1764547898841,9.63300664,131.62,131.59,11.51930634]
[1764547899340,9.63300664,131.64,131.59,30.51771047]
[1764547899500,9.63300664,131.64,131.62,16.308864]
[1764547899700,0.66,131.7,131.63,16.308864]
[1764547899923,9.63300664,131.65,131.63,7.59694541]
[1764547900121,0.66,131.7,131.6,7.59878419]
[1764547900122,9.63300664,131.64,131.6,7.59878419]
[1764547900333,27.23572436,131.7,131.6,7.59878419]
[1764547900507,9.63300664,131.62,131.6,7.59878419]
[1764547900706,0.66,131.65,131.6,7.59878419]
[1764547901025,2.01700664,131.61,131.6,7.59878419]
[1764547901328,0.66,131.65,131.58,7.59959483]
[1764547901501,13.55300664,131.75,131.61,25.94187064]
[1764547901502,0.66,131.73,131.61,25.94187064]
[1764547901696,9.63300664,131.62,131.61,16.308864]
[1764547902003,0.66,131.72,131.62,7.59762953]
[1764547902216,9.63300664,131.65,131.62,7.59762953]
[1764547902402,9.63300664,131.64,131.62,26.59170337]
[1764547902603,9.63300664,131.65,131.62,26.59170337]
[1764547902804,9.63300664,131.64,131.62,7.59628419]
[1764547903021,0.66,131.69,131.62,7.59628419]
[1764547903022,9.63300664,131.63,131.62,7.59628419]
[1764547903219,9.63300664,131.63,131.61,16.308864]
[1764547903418,10.29300664,131.62,131.54,3.92]
[1764547903623,9.63300664,131.59,131.54,3.92]
[1764547903842,0.66,131.62,131.54,3.92]
[1764547904003,0.66,131.62,131.55,7.60167236]
[1764547904203,9.63300664,131.56,131.5,26.61596957]
[1764547904408,26.58776828,131.64,131.5,26.61596957]
[1764547904409,0.66,131.57,131.5,26.61596957]
[1764547904725,9.63300664,131.51,131.5,7.60456273]
[1764547904926,0.66,131.57,131.5,7.60456273]
[1764547905119,9.63300664,131.55,131.53,16.308864]
[1764547905323,0.66,131.6,131.53,16.308864]
[1764547905904,9.63300664,131.54,131.53,7.60282825]
[1764547906716,0.66,131.58,131.44,75.0]
[1764547906922,0.66,131.58,131.43,64.67321005]
[1764547906923,0.66,131.58,131.51,16.308864]
[1764547907122,9.63300664,131.52,131.49,16.308864]
[1764547907625,26.59579741,131.6,131.43,64.67321005]
[1764547907828,9.63300664,131.51,131.45,84.63300664]
[1764547908015,9.63300664,131.53,131.47,18.44295156]
[1764547908331,0.66,131.61,131.5,16.308864]
[1764547908631,9.63300664,131.55,131.53,16.308864]
[1764547908820,9.59519606,131.67,131.5,83.80994492]
[1764547909001,0.66,131.64,131.52,158.80994492]
[1764547909207,9.63300664,131.61,131.55,9.63300664]
[1764547909531,0.66,131.66,131.53,18.44295156]
[1764547909826,9.63300664,131.6,131.54,18.44295156]
[1764547910006,9.63300664,131.6,131.55,26.60585327]
[1764547910326,0.66,131.66,131.55,26.60585327]
[1764547910519,0.66,131.66,131.54,9.63300664]
[1764547910520,0.66,131.63,131.53,7.60282825]
[1764547910729,0.66,131.63,131.52,18.44295156]
[1764547910937,9.63300664,131.59,131.55,16.308864]
[1764547911232,9.63300664,131.62,131.59,16.308864]
[1764547911428,9.63300664,131.6,131.53,16.308864]
[1764547911728,8.80994492,131.67,131.54,16.308864]
[1764547912026,9.63300664,131.55,131.54,16.308864]
[1764547912227,9.63300664,131.56,131.54,23.91111426]
[1764547912524,9.63300664,131.55,131.51,0.66]
[1764547912726,8.80994492,131.64,131.51,7.60384121]
[1764547913116,9.63300664,131.54,131.52,16.308864]
[1764547913313,0.66,131.63,131.52,26.60187064]
[1764547913531,9.63300664,131.58,131.54,16.308864]
[1764547913906,8.80994492,131.68,131.54,16.308864]
[1764547913907,0.66,131.66,131.55,23.45]
[1764547914108,9.63300664,131.6,131.56,26.60383094]
[1764547914308,9.63300664,131.59,131.56,26.60383094]
[1764547914502,0.66,131.66,131.56,26.60383094]
[1764547914713,0.66,131.66,131.57,16.968864]
[1764547914918,0.66,131.69,131.57,85.29300664]
[1764547915118,9.63300664,131.62,131.61,7.624]
[1764547915520,0.66,131.69,131.61,8.284]
[1764547916032,30.44748644,131.74,131.67,7.624]
[1764547916033,9.63300664,131.7,131.67,7.624]
[1764547916213,3.88,131.74,131.68,15.21816767]
[1764547916214,9.63300664,131.69,131.68,15.21816767]
[1764547916528,1.99999999,131.79,131.68,34.20358686]
[1764547916529,9.63300664,131.72,131.68,34.20358686]
[1764547916913,9.63300664,131.72,131.68,34.86358686]
[1764547917113,9.63300664,131.72,131.68,7.624]
[1764547917514,18.30886399,131.82,131.68,7.624]
[1764547917515,17.21335836,131.92,131.72,9.62399999]
[1764547917707,17.21335836,131.92,131.72,7.624]
[1764547917708,9.63300664,131.74,131.72,7.624]
[1764547917910,3.88,131.91,131.75,7.624]
[1764547918108,9.63300664,131.76,131.75,7.624]
[1764547918914,9.63300664,131.76,131.69,7.624]
[1764547919113,9.63300664,131.7,131.69,7.624]
[1764547919821,9.63300664,131.75,131.69,7.624]
[1764547919822,0.72,131.75,131.69,7.624]
[1764547920136,9.63300664,131.7,131.68,9.62399999]
[1764547920338,9.63300664,131.69,131.68,15.21772615]
[1764547920715,10.35300664,131.69,131.68,6.724]
[1764547920952,10.35300664,131.69,131.68,6.104]
[1764547920953,18.44295156,131.69,131.68,6.104]
[1764547921112,8.80994492,131.72,131.69,6.104]
[1764547921742,18.95197397,131.74,131.69,6.104]
[1764547921922,8.80994492,131.73,131.69,6.104]
[1764547922110,8.80994492,131.73,131.7,6.104]
[1764547922314,9.63300664,131.71,131.7,6.104]
[1764547922556,3.86,131.79,131.7,14.40701442]
[1764547922724,3.86,131.79,131.72,6.104]
[1764547922921,3.86,131.79,131.72,8.10399999]
[1764547923112,8.14155124,131.75,131.72,8.81399999]
[1764547923321,11.44816572,131.79,131.72,6.104]
[1764547923620,8.14155124,131.73,131.72,6.104]
[1764547923830,8.14155124,131.73,131.71,6.104]
[1764547924014,8.14155124,131.72,131.71,8.10399999]
[1764547924215,8.14155124,131.72,131.71,14.40643793]
[1764547924419,3.86,131.84,131.71,13.69643793]
[1764547924616,8.14155124,131.72,131.71,6.104]
[1764547924817,8.14155124,131.72,131.65,18.98872022]
[1764547925040,8.14155124,131.66,131.64,7.59647523]
[1764547925243,8.14155124,131.65,131.64,7.59647523]
[1764547925443,8.14155124,131.65,131.59,0.71]
[1764547925655,3.86,131.72,131.62,1.99999999]
[1764547925833,8.14155124,131.63,131.61,9.62399999]
[1764547926033,8.14155124,131.63,131.62,7.624]
[1764547926240,7.59596199,131.65,131.58,7.5999392]
[1764547926432,8.14155124,131.59,131.54,7.60225026]
[1764547926633,8.14155124,131.6,131.54,9.60225025]
[1764547926850,8.14155124,131.55,131.54,9.60225025]
[1764547927048,8.14155124,131.55,131.54,15.22625026]
[1764547927361,8.14155124,131.55,131.53,7.60278606]
[1764547927520,8.14155124,131.54,131.52,1.99999999]
[1764547927834,8.14155124,131.53,131.51,7.6034898]
[1764547928155,8.14155124,131.52,131.51,7.6034898]
[1764547928527,27.80871448,131.59,131.51,7.6034898]
[1764547928847,8.14155124,131.52,131.51,7.6034898]
[1764547929347,8.80994492,131.59,131.51,7.6034898]
[1764547929652,8.14155124,131.6,131.52,9.62399999]
[1764547929852,8.14155124,131.53,131.52,9.62399999]
[1764547930026,8.14155124,131.6,131.52,2.70999999]
[1764547930350,8.14155124,131.6,131.51,1.99999999]
[1764547930550,8.14155124,131.52,131.51,1.99999999]
[1764547930748,8.14155124,131.6,131.51,10.33399999]
[1764547931057,8.14155124,131.56,131.54,18.30886399]
[1764547931352,8.14155124,131.56,131.55,1.99999999]
[1764547931733,8.14155124,131.56,131.53,16.308864]
[1764547931933,8.14155124,131.54,131.53,16.308864]
[1764547932138,8.80994492,131.65,131.53,18.30886399]
[1764547932335,8.14155124,131.54,131.53,7.60264514]
[1764547932556,8.14155124,131.54,131.53,1.99999999]
[1764547932855,8.14155124,131.54,131.48,0.71]
[1764547933029,8.14155124,131.49,131.48,10.31567534]
[1764547933226,8.14155124,131.49,131.45,1.99999999]
[1764547933538,7.59946603,131.59,131.46,16.308864]
[1764547933728,8.80994492,131.58,131.47,9.62399999]
[1764547933933,8.14155124,131.48,131.46,1.99999999]
[1764547934247,8.14155124,131.47,131.46,1.99999999]
[1764547934450,8.14155124,131.47,131.41,0.1]
[1764547934654,8.14155124,131.47,131.38,1.99999999]
[1764547934655,8.14155124,131.46,131.38,1.99999999]
[1764547934829,8.14155124,131.46,131.35,8.334]
[1764547935030,8.14155124,131.36,131.35,7.624]
[1764547935539,8.14155124,131.36,131.31,1.99999999]
[1764547935749,8.14155124,131.46,131.28,7.624]
[1764547935750,8.14155124,131.32,131.28,7.624]
[1764547936045,3.86,131.37,131.29,1.99999999]
[1764547936248,8.14155124,131.3,131.27,0.71]
[1764547936491,8.14155124,131.28,131.27,8.32788679]
[1764547936669,3.86,131.37,131.28,1.99999999]
[1764547936829,8.80994492,131.36,131.31,7.624]
[1764547937028,8.14155124,131.32,131.25,9.61895103]
[1764547937232,8.80994492,131.36,131.27,1.99999999]
[1764547937458,8.14155124,131.31,131.3,1.99999999]
[1764547937762,8.14155124,131.33,131.32,7.624]
[1764547938132,4.38555124,131.46,131.37,7.624]
[1764547938329,8.14155124,131.38,131.37,7.624]
[1764547938755,4.38555124,131.46,131.37,15.23608799]
[1764547938960,8.14155124,131.4,131.38,0.71]
[1764547939165,26.59776578,131.59,131.44,9.62399999]
[1764547939455,26.59776578,131.59,131.45,1.99999999]
[1764547939456,3.86,131.55,131.45,1.99999999]
[1764547939657,7.59936165,131.59,131.45,1.99999999]
[1764547939658,8.14155124,131.6,131.48,1.99999999]
[1764547939844,8.14155124,131.5,131.49,1.99999999]
[1764547940042,15.7403846,131.6,131.51,1.99999999]
[1764547940043,8.14155124,131.52,131.51,1.99999999]
[1764547940255,8.14155124,131.53,131.52,7.60340632]
[1764547940455,8.14155124,131.53,131.52,9.60340631]
[1764547940756,8.14155124,131.53,131.49,7.60502575]
[1764547940941,8.14155124,131.5,131.47,9.60622033]
[1764547941140,8.14155124,131.48,131.47,9.60622033]
[1764547941348,8.14155124,131.48,131.47,7.60622034]
[1764547942255,19.00289666,131.56,131.47,7.60622034]
[1764547942761,8.14155124,131.48,131.47,7.60622034]
[1764547943158,19.00289666,131.56,131.47,8.31622034]
[1764547943340,8.14155124,131.48,131.47,8.31622034]
[1764547943665,8.14155124,131.48,131.44,16.308864]
[1764547943666,8.14155124,131.48,131.44,7.624]
[1764547943958,8.80994492,131.52,131.45,0.71]
[1764547944140,38.00230513,131.58,131.46,1.99999999]
[1764547944141,8.14155124,131.47,131.46,1.99999999]
[1764547944352,8.80994492,131.56,131.46,18.30886399]
[1764547944563,8.14155124,131.48,131.47,18.30886399]
[1764547944734,8.14155124,131.49,131.47,19.01886399]
[1764547944936,8.14155124,131.49,131.48,2.70999999]
[1764547945135,8.14155124,131.5,131.48,2.70999999]
[1764547945339,8.14155124,131.49,131.48,2.70999999]
[1764547945559,8.80994492,131.55,131.46,7.60635331]
[1764547945758,8.14155124,131.49,131.46,9.6063533]
[1764547945966,8.14155124,131.5,131.48,1.99999999]
[1764547946168,7.60128176,131.56,131.49,2.71999999]
[1764547946369,8.14155124,131.5,131.49,2.71999999]
[1764547946571,8.14155124,131.5,131.48,9.62399999]
[1764547946942,8.14155124,131.49,131.48,9.60516914]
[1764547947270,8.14155124,131.49,131.48,7.60516915]
[1764547947570,8.80994492,131.56,131.48,8.32516915]
[1764547947874,8.80994492,131.56,131.46,21.01719153]
[1764547947875,8.14155124,131.49,131.45,7.624]
[1764547948058,8.14155124,131.46,131.4,7.61035007]
[1764547948247,8.14155124,131.44,131.42,1.99999999]
[1764547948451,8.14155124,131.43,131.4,7.61035007]
[1764547948647,8.14155124,131.43,131.38,0.82]
[1764547948648,8.14155124,131.41,131.38,0.82]
[1764547948859,8.14155124,131.39,131.38,17.128864]
[1764547949064,8.14155124,131.39,131.38,26.75286399]
[1764547949373,8.14155124,131.39,131.38,0.1]
[1764547950366,16.95149616,131.39,131.38,1e-08]
[1764547951164,24.56242545,131.39,131.33,7.624]
[1764547951352,8.14155124,131.34,131.33,7.624]
[1764547951949,7.74489268,131.34,131.33,7.624]
[1764547952974,15.35871938,131.34,131.33,7.624]
[1764547953171,15.35871938,131.34,131.26,0.72]
[1764547953346,8.14155124,131.32,131.23,0.72]
[1764547953551,8.14155124,131.32,131.22,18.30886399]
[1764547953772,8.14155124,131.25,131.23,0.72]
[1764547953979,8.14155124,131.32,131.23,0.72]
[1764547954282,8.14155124,131.32,131.26,7.624]
[1764547954451,8.80994492,131.33,131.23,0.72]
[1764547954654,16.308864,131.3,131.2,0.1]
[1764547954852,8.80994492,131.29,131.2,0.1]
[1764547955158,8.80994492,131.27,131.2,0.1]
[1764547955360,8.14155124,131.21,131.2,0.1]
[1764547955753,28.97880892,131.27,131.2,0.1]
[1764547955950,8.14155124,131.21,131.2,0.1]
[1764547956149,8.80994492,131.26,131.2,0.1]
[1764547956576,8.14155124,131.21,131.2,1e-08]
[1764547956958,24.57286648,131.21,131.2,1e-08]
[1764547957158,32.71441772,131.21,131.2,1e-08]
[1764547957696,49.02328172,131.21,131.2,1e-08]
[1764547958459,24.57286648,131.21,131.2,1e-08]
[1764547958660,8.14155124,131.21,131.17,2.7]
[1764547958856,8.14155124,131.18,131.17,1.99999999]
[1764547959064,15.76490241,131.18,131.15,1.99999999]
[1764547959269,8.14155124,131.16,131.12,1.99999999]
[1764547959467,8.14155124,131.13,131.12,1.99999999]
[1764547959669,25.13880892,131.24,131.14,1.99999999]
[1764547959893,7.61788679,131.27,131.18,1.99999999]
[1764547960181,7.61777875,131.28,131.2,1.99999999]
[1764547960389,7.61777875,131.28,131.23,18.30886399]
[1764547960578,8.14155124,131.28,131.26,1.99999999]
[1764547960761,7.61324704,131.35,131.3,1.99999999]
[1764547960961,7.61614623,131.3,131.25,0.72]
[1764547961160,7.61614623,131.3,131.26,2.71999999]
[1764547961394,8.14155124,131.27,131.26,2.71999999]
[1764547961567,8.14155124,131.27,131.24,19.02886399]
[1764547961764,7.61614623,131.3,131.25,0.72]
[1764547962084,7.61614623,131.3,131.26,1.99999999]
[1764547962476,8.80994492,131.28,131.2,1.99999999]